bitfinex-derivatives/quotes_BTCF0:USTF0_20250918
["timestamp","ask_amount","ask_price","bid_price","bid_amount"]
[1758177741273,0.24497248,117120.0,117110.0,0.09946297]
[1758177741478,0.00012807,117120.0,117110.0,0.57239738]
[1758177741772,0.00012807,117120.0,117110.0,0.34946297]
[1758177741773,0.24497248,117120.0,117110.0,0.34946297]
[1758177744186,0.24497248,117120.0,117110.0,0.28807]
[1758177745079,0.24497248,117120.0,117110.0,0.34946297]
[1758177745881,0.69051951,117120.0,117110.0,0.68370369]
[1758177746082,0.69051951,117120.0,117110.0,0.34946297]
[1758177746983,0.69051951,117120.0,117110.0,0.28807]
[1758177748086,0.69051951,117120.0,117110.0,0.68370369]
[1758177748384,0.69051951,117120.0,117110.0,0.62231072]
[1758177749489,0.69051951,117120.0,117110.0,0.68365562]
[1758177759393,0.69051951,117120.0,117110.0,0.43365562]
[1758177759896,0.35627879,117120.0,117110.0,0.43365562]
[1758177760192,0.33436879,117120.0,117110.0,0.43365562]
[1758177760790,0.69052951,117120.0,117110.0,0.0994149]
[1758177760991,0.69052951,117120.0,117110.0,0.43365562]
[1758177761990,0.02204807,117120.0,117110.0,0.43365562]
[1758177762292,0.69052951,117120.0,117110.0,0.43365562]
[1758177763396,0.69052951,117120.0,117110.0,0.0994149]
[1758177763596,0.02204807,117120.0,117110.0,0.43365562]
[1758177763797,0.69052951,117120.0,117110.0,0.43365562]
[1758177764597,0.69052951,117120.0,117110.0,0.37231072]
[1758177768599,0.02204807,117120.0,117110.0,0.37231072]
[1758177768799,0.69052951,117120.0,117110.0,0.37231072]
[1758177769002,0.69052951,117120.0,117110.0,0.03807]
[1758177769204,0.69052951,117120.0,117110.0,0.37231072]
[1758177770902,0.02204807,117120.0,117110.0,0.37231072]
[1758177771102,0.69052951,117120.0,117110.0,0.37231072]
[1758177771602,0.69052951,117120.0,117110.0,0.03807]
[1758177771802,0.69052951,117120.0,117110.0,0.37231072]
[1758177773602,0.33436879,117120.0,117110.0,0.37231072]
[1758177776704,0.00012807,117120.0,117110.0,0.37231072]
[1758177776903,0.33436879,117120.0,117110.0,0.37231072]
[1758177777407,0.33436879,117120.0,117110.0,0.44879247]
[1758177777908,0.00012807,117120.0,117110.0,0.44879247]
[1758177778109,0.35628879,117120.0,117110.0,0.44879247]
[1758177778310,0.33436879,117120.0,117110.0,0.44879247]
[1758177779311,0.00012807,117120.0,117110.0,0.44879247]
[1758177779510,0.33436879,117120.0,117110.0,0.44879247]
[1758177780202,0.33436879,117120.0,117110.0,0.11455175]
[1758177780712,0.33436879,117120.0,117110.0,0.44879247]
[1758177780913,0.35628879,117120.0,117110.0,0.44879247]
[1758177781615,0.69052951,117120.0,117110.0,0.44879247]
[1758177782313,0.69052951,117120.0,117110.0,0.11455175]
[1758177782611,0.69052951,117120.0,117110.0,0.03807]
[1758177782811,0.69052951,117120.0,117110.0,0.11455175]
[1758177783001,0.69052951,117120.0,117110.0,0.03807]
[1758177796622,0.69052951,117120.0,117110.0,0.09955457]
[1758177798125,0.69052951,117120.0,117110.0,0.03807]
[1758177801118,0.69052951,117120.0,117110.0,0.09955345]
[1758177801520,0.69052951,117120.0,117110.0,0.03807]
[1758177802824,0.69052951,117120.0,117110.0,0.0552283]
[1758177805730,0.46773565,117120.0,117110.0,0.0552283]
[1758177806232,0.24489186,117120.0,117110.0,0.0552283]
[1758177806432,0.24489186,117120.0,117110.0,0.05544535]
[1758177812135,0.24489186,117120.0,117110.0,0.1319271]
[1758177813036,0.24489186,117120.0,117110.0,0.05544535]
[1758177814639,0.24489186,117120.0,117110.0,0.1319271]
[1758177816942,0.46773565,117120.0,117110.0,0.1319271]
[1758177817240,0.46773565,117120.0,117110.0,0.05544535]
[1758177819440,0.46773565,117120.0,117110.0,0.11693851]
[1758177821141,0.46773565,117120.0,117110.0,0.05544535]
[1758177821339,0.46773565,117120.0,117110.0,0.11693161]
[1758177824042,0.46773565,117120.0,117110.0,0.05544535]
[1758177832049,0.02204807,117120.0,117110.0,0.05544535]
[1758177832246,0.46773565,117120.0,117110.0,0.05544535]
[1758177845863,0.02204807,117120.0,117110.0,0.05544535]
[1758177846064,0.02204807,117120.0,117110.0,0.27828914]
[1758177848468,0.24489186,117120.0,117110.0,0.27828914]
[1758177849369,0.00012807,117120.0,117110.0,0.52828914]
[1758177849570,0.02146,117140.0,117130.0,0.03503]
[1758177849859,0.02136,117140.0,117130.0,0.31934375]
[1758177850062,0.02136,117140.0,117130.0,0.09649996]
[1758177850361,0.24420379,117140.0,117130.0,0.09649996]
[1758177850953,0.24520379,117140.0,117130.0,0.09649996]
[1758177852065,0.24720379,117140.0,117130.0,0.09649996]
[1758177852563,0.24520379,117140.0,117130.0,0.09649996]
[1758177853764,0.24420379,117140.0,117130.0,0.09649996]
[1758177855568,0.02136,117140.0,117130.0,0.09649996]
[1758177855865,0.24420379,117140.0,117130.0,0.09649996]
[1758177857568,0.24420379,117140.0,117130.0,0.31934375]
[1758177857763,0.02136,117140.0,117130.0,0.31934375]
[1758177857964,0.24420379,117140.0,117130.0,0.31934375]
[1758177858768,0.02136,117140.0,117130.0,0.31934375]
[1758177858964,0.24420379,117140.0,117130.0,0.31934375]
[1758177859166,0.02136,117140.0,117130.0,0.09649996]
[1758177859366,0.02136,117140.0,117130.0,0.31934375]
[1758177860772,0.02136,117140.0,117130.0,0.25787379]
[1758177861171,0.02136,117140.0,117130.0,0.11151175]
[1758177861471,0.02136,117140.0,117130.0,0.33435554]
[1758177861874,0.0001,117140.0,117130.0,0.33435554]
[1758177864976,0.0001,117140.0,117130.0,0.11151175]
[1758177864977,0.02136,117140.0,117130.0,0.11151175]
[1758177865177,0.24420379,117140.0,117130.0,0.11151175]
[1758177865577,0.02136,117140.0,117130.0,0.11151175]
[1758177865775,0.6896635,117140.0,117130.0,0.11151175]
[1758177866872,0.6896635,117140.0,117130.0,0.03503]
[1758177870881,0.6896635,117140.0,117130.0,0.11151175]
[1758177871380,1.0504635,117140.0,117130.0,0.03503]
[1758177873480,1.0504635,117140.0,117130.0,0.09635642]
[1758177873883,1.0504635,117140.0,117130.0,0.03503]
[1758177874083,1.0504635,117140.0,117130.0,0.09635642]
[1758177876494,0.38216,117140.0,117130.0,0.09635642]
[1758177876791,1.0504635,117140.0,117130.0,0.09635642]
[1758177880608,1.0504635,117140.0,117130.0,0.11361759]
[1758177886308,1.0504635,117140.0,117130.0,0.05229117]
[1758177887514,1.0504635,117140.0,117130.0,0.11370993]
[1758177888813,1.0504635,117140.0,117130.0,0.05229117]
[1758177889111,1.4112635,117140.0,117130.0,0.05229117]
[1758177894717,1.4112635,117140.0,117130.0,0.1137282]
[1758177898622,1.4112635,117140.0,117130.0,0.05229117]
[1758177899122,1.4112635,117140.0,117130.0,0.11373937]
[1758177899314,1.4112635,117140.0,117130.0,0.05229117]
[1758177899720,0.74296,117140.0,117130.0,0.05229117]
[1758177899923,1.4112635,117140.0,117130.0,0.11374356]
[1758177900222,1.4112635,117140.0,117130.0,0.05229117]
[1758177900622,0.74296,117140.0,117130.0,0.05229117]
[1758177900814,1.4112635,117140.0,117130.0,0.05229117]
[1758177904026,1.4112635,117140.0,117130.0,0.38644292]
[1758177904323,1.4112635,117140.0,117130.0,0.05229117]
[1758177906229,1.4112635,117140.0,117130.0,0.38644292]
[1758177907323,0.74296,117140.0,117130.0,0.38644292]
[1758177907529,1.4112635,117140.0,117130.0,0.38644292]
[1758177907832,1.4112635,117140.0,117130.0,0.05229117]
[1758177908224,1.4112635,117140.0,117130.0,0.38644292]
[1758177909427,1.4112635,117140.0,117130.0,0.05229117]
[1758177909629,1.4112635,117140.0,117130.0,0.38644292]
[1758177912128,0.74296,117140.0,117130.0,0.38644292]
[1758177912330,1.4112635,117140.0,117130.0,0.38644292]
[1758177912629,0.71631175,117140.0,117130.0,0.46292467]
[1758177913721,0.71631175,117140.0,117130.0,0.38644292]
[1758177913920,0.71631175,117140.0,117130.0,0.4938119]
[1758177914932,0.38216,117140.0,117130.0,0.4938119]
[1758177915228,0.71631175,117140.0,117130.0,0.4938119]
[1758177916528,0.71631175,117140.0,117130.0,0.46326037]
[1758177917532,0.38216,117140.0,117130.0,0.46326037]
[1758177917730,0.02136,117140.0,117130.0,0.46326037]
[1758177918025,0.0001,117140.0,117130.0,0.97059467]
[1758177918232,0.3608,117150.0,117140.0,0.03597]
[1758177918436,0.3608,117150.0,117140.0,0.78106944]
[1758177918636,0.3838,117150.0,117140.0,0.78106944]
[1758177918930,0.023,117150.0,117140.0,0.78106944]
[1758177919325,0.69495175,117160.0,117140.0,0.78106944]
[1758177919533,0.71795175,117160.0,117150.0,0.37012175]
[1758177920330,0.71795175,117160.0,117150.0,0.43153464]
[1758177920930,0.71895175,117160.0,117150.0,0.43153464]
[1758177921732,0.71895175,117160.0,117150.0,0.43988766]
[1758177921932,0.71995175,117160.0,117150.0,0.43153464]
[1758177923035,0.71995175,117160.0,117150.0,0.37012175]
[1758177923336,0.35915175,117160.0,117150.0,0.37012175]
[1758177923831,0.025,117160.0,117150.0,0.37012175]
[1758177924033,0.35915175,117160.0,117150.0,0.44691769]
[1758177924234,0.35915175,117160.0,117150.0,0.37012175]
[1758177924734,0.35915175,117160.0,117150.0,0.44691769]
[1758177925529,0.025,117160.0,117150.0,0.78106944]
[1758177925736,0.002,117160.0,117150.0,0.78106944]
[1758177926132,0.002,117160.0,117150.0,1.11639534]
[1758177926339,0.002,117160.0,117150.0,0.78224359]
[1758177926838,0.001,117160.0,117150.0,0.69691769]
[1758177927040,0.71795175,117170.0,117160.0,0.03597]
[1758177927239,0.71795175,117170.0,117160.0,0.43144667]
[1758177927439,0.3838,117170.0,117160.0,0.43144667]
[1758177927644,0.71795175,117170.0,117160.0,0.43144667]
[1758177927845,0.60643356,117170.0,117160.0,0.09729492]
[1758177928141,0.61489359,117170.0,117160.0,0.09729492]
[1758177928336,0.61589359,117170.0,117160.0,0.09729492]
[1758177928742,0.61689359,117170.0,117160.0,0.09729492]
[1758177930140,0.39426003,117170.0,117160.0,0.09729492]
[1758177930537,0.61689359,117170.0,117160.0,0.09729492]
[1758177931044,0.60843356,117170.0,117160.0,0.09729492]
[1758177931237,0.3858,117170.0,117160.0,0.09729492]
[1758177931434,0.60843356,117170.0,117160.0,0.31992848]
[1758177933238,0.3858,117170.0,117160.0,0.25860356]
[1758177933450,0.38524,117170.0,117160.0,0.54171204]
[1758177933634,0.38524,117170.0,117160.0,0.31907848]
[1758177935444,0.38524,117170.0,117160.0,0.09644492]
[1758177935644,0.38524,117170.0,117160.0,0.31907848]
[1758177936845,0.3628,117170.0,117160.0,0.28395848]
[1758177937048,0.38534,117170.0,117160.0,0.31907848]
[1758177940037,0.38534,117170.0,117160.0,0.54171204]
[1758177941148,0.38534,117170.0,117160.0,0.55911209]
[1758177943047,0.38534,117170.0,117160.0,0.55907732]
[1758177943547,0.02454,117170.0,117160.0,0.55907732]
[1758177943746,0.02454,117170.0,117160.0,0.91987732]
[1758177943939,0.0021,117170.0,117160.0,1.00519592]
[1758177944144,0.0021,117170.0,117160.0,0.943871]
[1758177944344,0.02454,117170.0,117160.0,0.91988607]
[1758177944948,0.02454,117170.0,117160.0,0.8585524]
[1758177945338,0.0011,117170.0,117160.0,0.8585524]
[1758177945543,0.0011,117170.0,117160.0,0.8595524]
[1758177945851,0.0001,117170.0,117160.0,0.8595524]
[1758177946151,0.0001,117170.0,117160.0,0.8605524]
[1758177946554,0.0001,117170.0,117160.0,0.86060835]
[1758177946850,0.02254,117170.0,117160.0,0.86060835]
[1758177947249,0.0001,117170.0,117160.0,1.41856051]
[1758177947448,0.38334,117190.0,117180.0,0.03512]
[1758177947650,0.02244,117190.0,117180.0,0.25775356]
[1758177948458,0.60587356,117190.0,117180.0,0.03512]
[1758177948756,0.60687356,117190.0,117180.0,0.03512]
[1758177949448,0.60787356,117190.0,117180.0,0.03512]
[1758177949654,1.09380712,117190.0,117170.0,0.03052158]
[1758177949953,0.82850712,117180.0,117170.0,0.0395465]
[1758177950351,0.60587356,117180.0,117170.0,0.0395465]
[1758177950951,0.82850712,117180.0,117170.0,0.0395465]
[1758177951152,0.60587356,117180.0,117170.0,0.0395465]
[1758177951652,0.60587356,117180.0,117170.0,0.0405465]
[1758177952055,0.82850712,117180.0,117170.0,0.0184765]
[1758177953052,0.82850712,117180.0,117170.0,0.0194765]
[1758177953254,0.82850712,117180.0,117170.0,0.0415465]
[1758177953553,0.82850712,117180.0,117170.0,0.02407]
[1758177953855,0.82850712,117180.0,117170.0,0.002]
[1758177957160,0.38324,117180.0,117170.0,0.002]
[1758177957554,0.82850712,117180.0,117170.0,0.002]
[1758177957756,0.82850712,117180.0,117170.0,0.06336209]
[1758177958261,0.82850712,117180.0,117170.0,0.002]
[1758177958262,1.07850712,117180.0,117170.0,0.002]
[1758177959263,1.07850712,117180.0,117170.0,0.001]
[1758177959762,1.07850712,117180.0,117170.0,0.002]
[1758177960561,1.07850712,117180.0,117170.0,0.001]
[1758177960859,0.63324,117180.0,117170.0,0.001]
[1758177961062,1.07850712,117180.0,117170.0,0.001]
[1758177961263,1.07850712,117180.0,117170.0,0.06236209]
[1758177961462,0.63324,117180.0,117170.0,0.001]
[1758177961661,1.07850712,117180.0,117170.0,0.001]
[1758177962059,1.07850712,117180.0,117160.0,0.07473209]
[1758177962261,0.60631356,117170.0,117160.0,0.09791209]
[1758177963365,0.38368,117170.0,117160.0,0.09791209]
[1758177963567,0.60631356,117170.0,117160.0,0.03655]
[1758177965170,0.60631356,117170.0,117160.0,0.03755]
[1758177965669,0.60631356,117170.0,117160.0,0.03855]
[1758177969365,0.60631356,117170.0,117160.0,0.11534594]
[1758177969572,0.60641356,117170.0,117160.0,0.11534594]
[1758177970169,0.38378,117170.0,117160.0,0.11534594]
[1758177970365,0.60641356,117170.0,117160.0,0.11534594]
[1758177970672,0.60641356,117170.0,117160.0,0.3379795]
[1758177972567,0.38378,117170.0,117160.0,0.3379795]
[1758177972763,0.38378,117170.0,117160.0,0.56061306]
[1758177973070,0.38378,117170.0,117160.0,0.3379795]
[1758177974672,0.38378,117170.0,117160.0,0.56061306]
[1758177976277,0.38378,117170.0,117160.0,0.3379795]
[1758177976870,0.02298,117170.0,117160.0,0.3379795]
[1758177980078,0.02298,117170.0,117160.0,0.56061306]
[1758177980377,0.0001,117170.0,117160.0,0.56061306]
[1758177980774,0.0001,117170.0,117160.0,0.89593166]
[1758177982179,0.02298,117170.0,117160.0,0.81913572]
[1758177982878,0.0001,117170.0,117160.0,0.89586004]
[1758177983081,0.0001,117170.0,117160.0,1.25666004]
[1758177983279,0.0001,117170.0,117160.0,1.17993572]
[1758177984281,0.0001,117170.0,117160.0,1.2873047]
[1758177985282,0.02298,117170.0,117160.0,0.75671898]
[1758177985486,0.02298,117170.0,117160.0,0.61855254]
[1758177985679,0.38378,117170.0,117160.0,0.61855254]
[1758177986685,0.38378,117170.0,117160.0,0.69525469]
[1758177987184,0.38378,117170.0,117160.0,0.58788571]
[1758177987885,0.71768079,117170.0,117160.0,1.03305373]
[1758177988384,0.38378,117170.0,117160.0,1.03305373]
[1758177988779,0.38378,117170.0,117160.0,0.36525215]
[1758177989089,0.71768079,117170.0,117160.0,0.11525215]
[1758177989282,0.71768079,117170.0,117160.0,0.03855]
[1758177989481,0.71768079,117170.0,117160.0,0.37245079]
[1758177990283,0.71768079,117170.0,117160.0,0.70635158]
[1758177992089,0.71768079,117170.0,117160.0,0.37245079]
[1758177994389,0.71768079,117170.0,117160.0,0.70635158]
[1758177994892,0.71768079,117170.0,117160.0,0.78305373]
[1758177995293,0.38378,117170.0,117160.0,0.78305373]
[1758177995492,0.71768079,117170.0,117160.0,0.78305373]
[1758177996698,0.38378,117170.0,117160.0,0.78305373]
[1758177996995,0.71768079,117170.0,117160.0,0.78305373]
[1758177997587,0.38378,117170.0,117160.0,0.78305373]
[1758177998792,0.71768079,117170.0,117160.0,0.78305373]
[1758177998996,0.38378,117170.0,117160.0,0.78305373]
[1758177999191,0.71768079,117170.0,117160.0,0.78305373]
[1758177999687,0.38378,117170.0,117160.0,0.78305373]
[1758178001296,0.38378,117170.0,117160.0,0.70635158]
[1758178001596,0.38378,117170.0,117160.0,0.78314339]
[1758178002092,0.38378,117170.0,117160.0,0.11534181]
[1758178002393,0.38378,117170.0,117160.0,0.78314339]
[1758178004295,0.3609,117170.0,117160.0,0.78314339]
[1758178004492,0.3609,117170.0,117160.0,0.70635158]
[1758178004691,0.0001,117170.0,117160.0,0.70635158]
[1758178004893,0.02314,117170.0,117160.0,0.70635158]
[1758178009301,0.35704079,117170.0,117160.0,0.70635158]
[1758178011399,0.02314,117170.0,117160.0,0.70635158]
[1758178011600,0.02314,117170.0,117160.0,1.06715158]
[1758178012100,0.35704079,117170.0,117160.0,0.37245079]
[1758178012297,0.35704079,117170.0,117160.0,0.44926022]
[1758178012898,0.35704079,117170.0,117160.0,0.78316101]
[1758178013395,0.35704079,117170.0,117160.0,0.44926022]
[1758178014498,0.02314,117170.0,117160.0,0.44926022]
[1758178014703,0.35704079,117170.0,117160.0,0.44926022]
[1758178016004,0.71784079,117170.0,117160.0,0.44926022]
[1758178017200,0.38394,117170.0,117160.0,0.44926022]
[1758178017406,0.71784079,117170.0,117160.0,0.44926022]
[1758178018500,0.71784079,117170.0,117160.0,0.11535943]
[1758178018805,0.71784079,117170.0,117160.0,0.44926022]
[1758178021207,0.38394,117170.0,117160.0,0.44926022]
[1758178021407,0.71784079,117170.0,117160.0,0.44926022]
[1758178025812,0.71784079,117170.0,117160.0,0.11535943]
[1758178026014,0.71784079,117170.0,117160.0,0.44926022]
[1758178035316,0.71784079,117170.0,117160.0,0.78316101]
[1758178035616,0.38394,117170.0,117160.0,0.78316101]
[1758178035914,0.71784079,117170.0,117160.0,0.78316101]
[1758178038713,0.38394,117170.0,117160.0,0.78316101]
[1758178038921,0.71784079,117170.0,117160.0,0.78316101]
[1758178040422,0.38394,117170.0,117160.0,0.78316101]
[1758178040620,0.71784079,117170.0,117160.0,0.78316681]
[1758178041221,0.71784079,117170.0,117160.0,0.70635158]
[1758178041422,0.71784079,117170.0,117160.0,0.78317124]
[1758178042421,0.71784079,117170.0,117160.0,0.70635158]
[1758178043412,0.38394,117170.0,117160.0,0.70635158]
[1758178043614,0.71784079,117170.0,117160.0,0.70635158]
[1758178044120,0.71784079,117170.0,117160.0,0.03855]
[1758178044321,0.71784079,117170.0,117160.0,0.70635158]
[1758178044820,0.71784079,117170.0,117160.0,0.78317543]
[1758178045021,0.71784079,117170.0,117160.0,0.70635158]
[1758178045922,0.71784079,117170.0,117160.0,0.78317698]
[1758178048426,0.71784079,117170.0,117160.0,0.70635158]
[1758178048718,0.71784079,117170.0,117160.0,0.03855]
[1758178048924,0.38394,117170.0,117160.0,0.44927365]
[1758178049222,0.71784079,117170.0,117160.0,0.44927365]
[1758178049724,0.60656276,117170.0,117160.0,0.33799562]
[1758178053830,0.38394,117170.0,117160.0,0.11537286]
[1758178054219,0.38394,117170.0,117160.0,0.33799562]
[1758178054830,0.02314,117170.0,117160.0,0.56061838]
[1758178057132,0.02314,117170.0,117160.0,0.11537286]
[1758178057328,0.02314,117170.0,117160.0,0.56061838]
[1758178057530,0.0001,117170.0,117160.0,0.56061838]
[1758178058031,0.0001,117170.0,117160.0,0.48379552]
[1758178058227,0.0001,117170.0,117160.0,0.56061606]
[1758178059637,0.0001,117170.0,117160.0,0.48379552]
[1758178060034,0.0001,117170.0,117160.0,0.84459552]
[1758178062340,0.0001,117170.0,117160.0,0.9519645]
[1758178063243,0.0001,117170.0,117160.0,0.50671898]
[1758178063441,0.0001,117170.0,117160.0,0.9519645]
[1758178064048,0.02321,117170.0,117160.0,0.39935]
[1758178064337,0.02321,117170.0,117160.0,0.84459552]
[1758178066248,0.02321,117170.0,117160.0,0.33797766]
[1758178068953,0.24583276,117170.0,117160.0,0.1153549]
[1758178069248,0.38401,117170.0,117160.0,0.1153549]
[1758178069442,0.60663276,117170.0,117160.0,0.33797766]
[1758178070044,0.60663276,117170.0,117160.0,0.26117276]
[1758178070246,0.60663276,117170.0,117160.0,0.33797766]
[1758178070549,0.60663276,117170.0,117160.0,0.1153549]
[1758178071251,0.60663276,117170.0,117160.0,0.33797766]
[1758178074851,0.60663276,117170.0,117160.0,0.1153549]
[1758178075252,0.60663276,117170.0,117160.0,0.03855]
[1758178075854,0.38401,117170.0,117160.0,0.03855]
[1758178076055,0.60663276,117170.0,117160.0,0.03855]
[1758178078863,0.38401,117170.0,117160.0,0.03855]
[1758178079055,0.38401,117170.0,117160.0,0.33797766]
[1758178079262,0.02321,117170.0,117160.0,0.33797766]
[1758178080162,0.02321,117170.0,117160.0,0.1153549]
[1758178080362,0.02321,117170.0,117160.0,0.33797766]
[1758178082069,0.02321,117170.0,117160.0,0.26117276]
[1758178082362,0.38401,117170.0,117160.0,0.26117276]
[1758178083866,0.38401,117170.0,117160.0,0.03855]
[1758178084169,0.38401,117170.0,117160.0,0.26117276]
[1758178086168,0.60663276,117170.0,117160.0,0.26117276]
[1758178089873,0.60663276,117170.0,117160.0,0.03855]
[1758178090168,0.60663276,117170.0,117160.0,0.26117276]
[1758178091172,0.60663276,117170.0,117160.0,0.33797766]
[1758178092270,0.60663276,117170.0,117160.0,0.1153549]
[1758178092472,0.60663276,117170.0,117160.0,0.26117276]
[1758178093272,0.60663276,117170.0,117160.0,0.33795639]
[1758178094870,0.60663276,117170.0,117160.0,0.11533363]
[1758178096873,0.38401,117170.0,117160.0,0.11533363]
[1758178097176,0.60663276,117170.0,117160.0,0.03855]
[1758178097774,0.38401,117170.0,117160.0,0.03855]
[1758178097974,0.60663276,117170.0,117160.0,0.03855]
[1758178098675,0.60663276,117170.0,117160.0,0.11535496]
[1758178099574,0.38401,117170.0,117160.0,0.11535496]
[1758178099775,0.60663276,117170.0,117160.0,0.11535496]
[1758178100879,0.60663276,117170.0,117160.0,0.03855]
[1758178101278,0.60663276,117170.0,117160.0,0.1153559]
[1758178101776,0.60663276,117170.0,117160.0,0.03855]
[1758178102076,0.60663276,117170.0,117160.0,0.11535661]
[1758178105477,0.60663276,117170.0,117160.0,0.03855]
[1758178105875,0.60663276,117170.0,117160.0,0.14591898]
[1758178106776,0.60663276,117170.0,117160.0,0.1153645]
[1758178107183,0.85663276,117170.0,117160.0,0.1153645]
[1758178109782,1.30200974,117170.0,117160.0,0.1153645]
[1758178110879,0.96800987,117170.0,117160.0,0.1153645]
[1758178111182,1.30200974,117170.0,117160.0,0.1153645]
[1758178111784,1.30200974,117170.0,117160.0,0.1019945]
[1758178114787,1.30200974,117170.0,117160.0,0.02518]
[1758178114988,1.30200974,117170.0,117160.0,0.08661706]
[1758178116483,1.30200974,117170.0,117160.0,0.02518]
[1758178116885,1.30200974,117170.0,117160.0,0.002]
[1758178117384,1.30200974,117170.0,117160.0,0.06342016]
[1758178119291,1.05200974,117170.0,117160.0,0.06342016]
[1758178119593,1.05200974,117170.0,117160.0,0.06242016]
[1758178119788,1.05200974,117170.0,117160.0,0.06142016]
[1758178121888,0.00665,117160.0,117150.0,1.06164823]
[1758178122095,1.03554974,117160.0,117150.0,1.06154823]
[1758178122589,1.36954961,117160.0,117150.0,1.06154823]
[1758178122990,1.36954961,117160.0,117150.0,1.06254823]
[1758178123191,1.36954961,117160.0,117150.0,1.00212807]
[1758178125993,1.43709512,117160.0,117150.0,1.00212807]
[1758178130901,1.43709512,117160.0,117150.0,1.06354823]
[1758178131701,1.43709512,117160.0,117150.0,1.00212807]
[1758178132400,1.43709512,117160.0,117150.0,1.06354823]
[1758178134598,1.43709512,117160.0,117150.0,1.06254823]
[1758178134795,1.43809512,117160.0,117150.0,1.06154823]
[1758178136410,1.43909512,117160.0,117150.0,1.06154823]
[1758178143608,0.43044551,117160.0,117150.0,1.59728794]
[1758178143808,0.3629,117160.0,117150.0,1.67410244]
[1758178144000,0.3629,117160.0,117150.0,1.59728794]
[1758178144208,0.3629,117160.0,117150.0,1.6740335]
[1758178144411,0.69689987,117160.0,117150.0,1.6740335]
[1758178145012,0.69589987,117160.0,117150.0,1.6740335]
[1758178145311,0.69489987,117160.0,117150.0,1.6740335]
[1758178145508,0.3609,117160.0,117150.0,1.6740335]
[1758178145810,0.69489987,117160.0,117150.0,1.6740335]
[1758178148209,0.69489987,117160.0,117150.0,1.59728794]
[1758178149508,0.0001,117160.0,117150.0,2.36883337]
[1758178149702,0.0001,117160.0,117150.0,2.39945679]
[1758178150411,0.0001,117160.0,117150.0,2.06545692]
[1758178150611,0.0001,117160.0,117150.0,2.39945679]
[1758178151007,0.0001,117160.0,117150.0,2.40045679]
[1758178151212,0.0001,117160.0,117150.0,2.40245679]
[1758178151817,0.0001,117160.0,117150.0,2.40145679]
[1758178152016,0.0001,117160.0,117150.0,2.40345679]
[1758178152315,0.0001,117160.0,117150.0,2.48012455]
[1758178152510,0.0001,117160.0,117150.0,2.37275557]
[1758178158012,0.33409987,117160.0,117150.0,2.0387557]
[1758178158216,0.33409987,117160.0,117150.0,1.4279557]
[1758178158720,0.33409987,117160.0,117150.0,1.35128794]
[1758178158919,0.0001,117160.0,117150.0,1.35128794]
[1758178159516,0.33409987,117160.0,117150.0,1.35128794]
[1758178161519,0.33409987,117160.0,117150.0,1.36836443]
[1758178162323,0.0001,117160.0,117150.0,1.36836443]
[1758178162523,0.33409987,117160.0,117150.0,1.36836443]
[1758178163125,0.0001,117160.0,117150.0,1.36836443]
[1758178163319,0.33409987,117160.0,117150.0,1.36836443]
[1758178163523,0.0001,117160.0,117150.0,1.44503219]
[1758178165125,0.0001,117160.0,117150.0,1.44507916]
[1758178168425,0.0001,117160.0,117150.0,1.3684114]
[1758178169026,0.0001,117160.0,117150.0,1.44508304]
[1758178169222,0.0001,117160.0,117150.0,1.77908291]
[1758178169428,0.0001,117160.0,117150.0,1.3684114]
[1758178170226,0.0001,117160.0,117150.0,1.44510061]
[1758178171832,0.0001,117160.0,117150.0,1.33372576]
[1758178172433,0.0001,117160.0,117150.0,1.33377503]
[1758178173829,0.0001,117160.0,117150.0,1.25703655]
[1758178174830,0.0001,117160.0,117150.0,1.33381797]
[1758178176031,0.0001,117160.0,117150.0,1.25703655]
[1758178177137,0.0001,117160.0,117150.0,1.33382678]
[1758178178439,0.0001,117160.0,117150.0,1.25703655]
[1758178181133,0.0001,117160.0,117150.0,1.36440553]
[1758178181533,0.0001,117160.0,117150.0,1.25703655]
[1758178183342,0.0001,117160.0,117150.0,1.03441153]
[1758178183642,0.0001,117160.0,117150.0,1.25703655]
[1758178184239,0.0001,117160.0,117150.0,1.36440553]
[1758178184939,0.0001,117160.0,117150.0,1.25703655]
[1758178185743,0.0001,117160.0,117150.0,1.03441153]
[1758178185942,0.0001,117160.0,117150.0,1.25703655]
[1758178190550,0.0001,117160.0,117150.0,1.03441153]
[1758178190847,0.0001,117160.0,117150.0,1.25703655]
[1758178193349,0.0001,117160.0,117150.0,1.03441153]
[1758178193551,0.0001,117160.0,117150.0,1.25703655]
[1758178196252,0.0001,117160.0,117150.0,1.36440553]
[1758178199555,0.0001,117160.0,117150.0,1.25703655]
[1758178199760,0.0001,117160.0,117150.0,1.33387905]
[1758178200149,0.0001,117160.0,117150.0,1.11125403]
[1758178200348,0.0001,117160.0,117150.0,1.33387905]
[1758178203751,0.0001,117160.0,117150.0,1.11125403]
[1758178203953,0.0001,117160.0,117150.0,1.33387905]
[1758178207057,0.0001,117160.0,117150.0,1.25703655]
[1758178210265,0.0001,117160.0,117150.0,1.03441153]
[1758178210463,0.0001,117160.0,117150.0,1.25703655]
[1758178213065,0.3609,117160.0,117150.0,1.25703655]
[1758178215474,0.3609,117160.0,117150.0,1.03441153]
[1758178215772,0.3609,117160.0,117150.0,1.25703655]
[1758178216173,1.05615004,117160.0,117150.0,1.07876024]
[1758178216366,1.05615004,117160.0,117150.0,1.09413153]
[1758178216565,0.83352502,117160.0,117150.0,1.09413153]
[1758178218473,0.83352502,117160.0,117150.0,1.01728807]
[1758178220974,0.83352502,117160.0,117150.0,1.01428807]
[1758178221177,0.83352502,117160.0,117150.0,1.01528807]
[1758178225477,1.05615004,117160.0,117150.0,1.01528807]
[1758178226081,1.05615004,117160.0,117150.0,1.09213153]
[1758178226882,0.83352502,117160.0,117150.0,1.07670483]
[1758178227882,0.81280004,117160.0,117150.0,1.07670483]
[1758178228083,1.06280004,117160.0,117150.0,1.07670483]
[1758178228285,1.06280004,117160.0,117150.0,1.06354483]
[1758178231784,1.2858124,117160.0,117150.0,1.06354483]
[1758178232985,1.35421108,117160.0,117150.0,1.06354483]
[1758178235181,1.35421108,117160.0,117150.0,1.00212807]
[1758178235584,1.68834228,117160.0,117150.0,1.00212807]
[1758178236285,1.35421108,117160.0,117150.0,1.00212807]
[1758178239289,1.43834228,117160.0,117150.0,1.00212807]
[1758178250604,1.07754228,117160.0,117150.0,1.00212807]
[1758178250802,1.79914228,117160.0,117150.0,1.00212807]
[1758178254710,1.79793226,117160.0,117150.0,1.00212807]
[1758178257511,1.79681994,117160.0,117150.0,1.00212807]
[1758178258812,1.07521994,117160.0,117150.0,1.00212807]
[1758178259010,1.79681994,117160.0,117150.0,1.00212807]
[1758178272926,1.8169675,117160.0,117150.0,1.00212807]
[1758178283028,2.2572675,117160.0,117150.0,1.00212807]